bitfinex-derivatives/quotes_BNBF0:USTF0_20251203
["timestamp","ask_amount","ask_price","bid_price","bid_amount"]
[1764766194380,0.19301272,901.89,901.25,0.70500345]
[1764766194574,0.19301272,901.89,901.26,0.70500345]
[1764766194777,0.19301272,901.89,901.27,0.70500345]
[1764766194976,0.19301272,901.89,901.28,0.70500345]
[1764766195180,0.19301272,901.89,901.29,0.70500345]
[1764766195480,0.19301272,901.89,901.3,0.70500345]
[1764766195678,0.19301272,901.89,901.31,0.70500345]
[1764766195982,0.19301272,901.89,901.32,0.70500345]
[1764766196279,0.19301272,901.89,901.33,0.70500345]
[1764766196479,0.19301272,901.89,901.34,0.70500345]
[1764766196678,0.19301272,901.89,901.35,0.70500345]
[1764766196879,0.19301272,901.89,901.36,0.70500345]
[1764766197181,0.19301272,901.89,901.37,0.70500345]
[1764766197481,0.19301272,901.89,901.38,0.70500345]
[1764766197678,0.19301272,901.89,901.39,0.70500345]
[1764766197878,0.19301272,901.89,901.4,0.70500345]
[1764766198080,0.19301272,901.89,901.41,0.70500345]
[1764766198375,0.19301272,901.89,901.42,0.70500345]
[1764766198580,0.19301272,901.89,901.43,0.70500345]
[1764766198880,0.19301272,901.89,901.44,0.70500345]
[1764766199078,0.19301272,901.89,901.2,1.772]
[1764766199079,0.19301272,901.89,901.45,0.70500345]
[1764766199381,0.19301272,901.89,901.46,0.70500345]
[1764766199676,0.19301272,901.89,901.47,0.70500345]
[1764766199880,0.19301272,901.89,901.2,1.772]
[1764766200080,0.19301272,901.89,901.21,0.70494561]
[1764766200377,0.19301272,901.89,901.22,0.70494561]
[1764766200579,0.19301272,901.89,901.23,0.70494561]
[1764766200780,0.19301272,901.89,901.24,0.70494561]
[1764766200974,0.19301272,901.89,901.25,0.70494561]
[1764766201178,0.19301272,901.89,901.26,0.70494561]
[1764766201374,0.19301272,901.89,901.27,0.70494561]
[1764766201578,0.19301272,901.89,901.28,0.70494561]
[1764766201778,0.19301272,901.89,901.29,0.70494561]
[1764766201976,0.19301272,901.89,901.3,0.70494561]
[1764766202180,0.19301272,901.89,901.31,0.70494561]
[1764766202378,0.19301272,901.89,901.32,0.70494561]
[1764766202579,0.19301272,901.89,901.33,0.70494561]
[1764766202778,0.19301272,901.89,901.34,0.70494561]
[1764766202981,0.19301272,901.89,901.35,0.70494561]
[1764766203176,0.19301272,901.89,901.36,0.70494561]
[1764766203380,0.19301272,901.89,901.37,0.70494561]
[1764766203582,0.19301272,901.89,901.38,0.70494561]
[1764766203783,0.19301272,901.89,901.39,0.70494561]
[1764766203983,0.19301272,901.89,901.4,0.70494561]
[1764766204183,0.19301272,901.89,901.41,0.70494561]
[1764766204382,0.19301272,901.89,901.42,0.70494561]
[1764766204682,0.19301272,901.89,901.43,0.70494561]
[1764766204882,0.19301272,901.89,901.44,0.70494561]
[1764766205080,0.19301272,901.89,901.45,0.70494561]
[1764766205279,0.19301272,901.89,901.46,0.70494561]
[1764766205479,0.19301272,901.89,901.2,1.772]
[1764766205778,0.19301272,901.89,901.21,0.70600945]
[1764766206084,0.19301272,901.89,901.22,0.70600945]
[1764766206280,0.19301272,901.89,901.23,0.70600945]
[1764766206485,0.19301272,901.89,901.24,0.70600945]
[1764766206685,0.19301272,901.89,901.25,0.70600945]
[1764766206883,0.19301272,901.89,901.26,0.70600945]
[1764766207080,0.19301272,901.89,901.27,0.70600945]
[1764766207282,0.19301272,901.89,901.28,0.70600945]
[1764766207581,0.19301272,901.89,901.29,0.70600945]
[1764766207785,0.19301272,901.89,901.3,0.70600945]
[1764766207982,0.19301272,901.89,901.31,0.70600945]
[1764766208191,0.19301272,901.89,901.32,0.70600945]
[1764766208387,0.19301272,901.89,901.33,0.70600945]
[1764766208687,0.19301272,901.89,901.34,0.70600945]
[1764766208886,0.19301272,901.89,901.35,0.70600945]
[1764766209089,0.19301272,901.89,901.36,0.70600945]
[1764766209382,0.19301272,901.89,901.37,0.70600945]
[1764766209583,0.19301272,901.89,901.38,0.70600945]
[1764766209882,0.19301272,901.89,901.2,1.772]
[1764766210086,0.19301272,901.89,901.21,0.70556884]
[1764766210287,0.19301272,901.89,901.22,0.70556884]
[1764766210485,0.19301272,901.89,901.23,0.70556884]
[1764766210684,0.19301272,901.89,901.24,0.70556884]
[1764766210882,0.19301272,901.89,901.25,0.70556884]
[1764766211082,0.19301272,901.89,901.26,0.70556884]
[1764766211282,0.19301272,901.89,901.2,1.772]
[1764766211283,0.19301272,901.89,901.27,0.70556884]
[1764766211486,0.19301272,901.89,901.28,0.70556884]
[1764766211683,0.19301272,901.89,901.29,0.70556884]
[1764766211884,0.19301272,901.89,901.3,0.70556884]
[1764766212083,0.19301272,901.89,901.31,0.70556884]
[1764766212285,0.19301272,901.89,901.32,0.70556884]
[1764766212483,0.19301272,901.89,901.33,0.70556884]
[1764766212684,0.19301272,901.89,901.34,0.70556884]
[1764766212985,0.19301272,901.89,901.2,1.772]
[1764766213189,0.19301272,901.89,901.21,0.70537065]
[1764766213388,0.19301272,901.89,901.22,0.70537065]
[1764766213588,0.19301272,901.89,901.23,0.70537065]
[1764766213890,0.19301272,901.89,901.24,0.70537065]
[1764766214084,0.19301272,901.89,901.25,0.70537065]
[1764766214384,0.19301272,901.89,901.2,1.772]
[1764766214385,0.19301272,901.89,901.26,0.70537065]
[1764766214586,0.19301272,901.89,901.2,1.772]
[1764766214782,0.19301272,901.89,901.21,0.70524865]
[1764766214988,0.19301272,901.89,901.22,0.70524865]
[1764766215181,0.19301272,901.89,901.23,0.70524865]
[1764766215388,0.19301272,901.89,901.24,0.70524865]
[1764766215587,0.19301272,901.89,901.2,1.772]
[1764766215784,0.19301272,901.89,901.21,0.70547523]
[1764766216087,0.19301272,901.89,901.2,1.772]
[1764766220286,0.19301272,901.89,901.21,0.70542315]
[1764766220487,0.19301272,901.89,901.2,1.772]
[1764766221284,0.19301272,901.89,901.21,0.70545958]
[1764766221488,0.19301272,901.89,901.2,1.772]
[1764766221691,0.19301272,901.89,901.21,0.70546081]
[1764766221889,0.19301272,901.89,901.22,0.70546081]
[1764766222088,0.19301272,901.89,901.23,0.70546081]
[1764766222288,0.19301272,901.89,901.24,0.70546081]
[1764766222589,0.19301272,901.89,901.2,1.772]
[1764766222787,0.19301272,901.89,901.21,0.70565769]
[1764766223091,0.19301272,901.89,901.22,0.70565769]
[1764766223287,0.19301272,901.89,901.23,0.70565769]
[1764766223490,0.19301272,901.89,901.24,0.70565769]
[1764766223690,0.19301272,901.89,901.25,0.70565769]
[1764766223888,0.19301272,901.89,901.26,0.70565769]
[1764766224092,0.19301272,901.89,901.27,0.70565769]
[1764766224290,0.19301272,901.89,901.28,0.70565769]
[1764766224589,0.19301272,901.89,901.2,1.772]
[1764766224888,0.19301272,901.89,901.21,0.70554306]
[1764766225093,0.19301272,901.89,901.22,0.70554306]
[1764766225293,0.19301272,901.89,901.23,0.70554306]
[1764766225494,0.19301272,901.89,901.24,0.70554306]
[1764766225689,0.19301272,901.89,901.25,0.70554306]
[1764766225890,0.19301272,901.89,901.26,0.70554306]
[1764766226095,0.19301272,901.89,901.27,0.70554306]
[1764766226294,0.19301272,901.89,901.2,1.772]
[1764766226594,0.19301272,901.89,901.21,0.70557126]
[1764766226896,0.19301272,901.89,901.22,0.70557126]
[1764766227095,0.19301272,901.89,901.23,0.70557126]
[1764766227293,0.19301272,901.89,901.24,0.70557126]
[1764766227592,0.19301272,901.89,901.25,0.70557126]
[1764766227790,0.19301272,901.89,901.26,0.70557126]
[1764766227991,0.19301272,901.89,901.27,0.70557126]
[1764766228191,0.19301272,901.89,901.28,0.70557126]
[1764766228492,0.19301272,901.89,901.2,1.772]
[1764766228692,0.19301272,901.89,901.21,0.70560031]
[1764766228895,0.19301272,901.89,901.22,0.70560031]
[1764766229099,0.19301272,901.89,901.23,0.70560031]
[1764766229395,0.19301272,901.89,901.2,1.772]
[1764766229396,0.19301272,901.89,901.24,0.70560031]
[1764766229595,0.19301272,901.89,901.25,0.70560031]
[1764766229791,0.19301272,901.89,901.26,0.70560031]
[1764766229991,0.19301272,901.89,901.27,0.70560031]
[1764766230292,0.19301272,901.89,901.28,0.70560031]
[1764766230489,0.19301272,901.89,901.2,1.772]
[1764766230691,0.19301272,901.89,901.21,0.70542629]
[1764766230989,0.19301272,901.89,901.22,0.70542629]
[1764766231195,0.19301272,901.89,901.23,0.70542629]
[1764766231394,0.19301272,901.89,901.24,0.70542629]
[1764766231591,0.19301272,901.89,901.25,0.70542629]
[1764766231794,0.19301272,901.89,901.26,0.70542629]
[1764766232097,0.19301272,901.89,901.27,0.70542629]
[1764766232294,0.19301272,901.89,901.28,0.70542629]
[1764766232594,0.19301272,901.89,901.29,0.70542629]
[1764766232793,0.19301272,901.89,901.3,0.70542629]
[1764766232993,0.19301272,901.89,901.31,0.70542629]
[1764766233194,0.19301272,901.89,901.32,0.70542629]
[1764766233397,0.19301272,901.89,901.33,0.70542629]
[1764766233697,0.19301272,901.89,901.34,0.70542629]
[1764766233898,0.19301272,901.89,901.2,1.772]
[1764766234104,0.19301272,901.89,901.21,0.70569976]
[1764766234403,0.19301272,901.89,901.22,0.70569976]
[1764766234602,0.19301272,901.89,901.23,0.70569976]
[1764766234805,0.19301272,901.89,901.24,0.70569976]
[1764766235098,0.19301272,901.89,901.25,0.70569976]
[1764766235302,0.19301272,901.89,901.26,0.70569976]
[1764766235602,0.19301272,901.89,901.27,0.70569976]
[1764766235802,0.19301272,901.89,901.28,0.70569976]
[1764766236099,0.19301272,901.89,901.29,2.09669976]
[1764766236303,0.19301272,901.89,901.3,0.70569976]
[1764766236504,0.19301272,901.89,901.31,0.70569976]
[1764766236699,0.19301272,901.89,901.32,0.70569976]
[1764766236902,0.19301272,901.89,901.33,0.70569976]
[1764766237099,0.19301272,901.89,901.34,0.70569976]
[1764766237300,0.19301272,901.89,901.29,1.391]
[1764766237505,0.19301272,901.89,901.3,0.7057391]
[1764766237800,0.19301272,901.89,901.31,0.7057391]
[1764766238006,0.19301272,901.89,901.32,0.7057391]
[1764766238203,0.19301272,901.89,901.33,0.7057391]
[1764766238400,0.19301272,901.89,901.34,0.7057391]
[1764766238704,0.19301272,901.89,901.35,0.7057391]
[1764766238905,0.19301272,901.89,901.29,1.391]
[1764766239104,0.19301272,901.89,901.3,0.70563156]
[1764766239407,0.19301272,901.89,901.31,0.70563156]
[1764766239601,0.19301272,901.89,901.32,0.70563156]
[1764766239801,0.19301272,901.89,901.33,0.70563156]
[1764766240004,0.19301272,901.89,901.34,0.70563156]
[1764766240305,0.19301272,901.89,901.35,0.70563156]
[1764766240505,0.19301272,901.89,901.36,0.70563156]
[1764766240708,0.19301272,901.89,901.37,0.70563156]
[1764766240906,0.19301272,901.89,901.29,1.391]
[1764766241105,0.19301272,901.89,901.3,0.70558337]
[1764766241301,0.19301272,901.89,901.31,0.70558337]
[1764766241503,0.19301272,901.89,901.32,0.70558337]
[1764766241806,0.19301272,901.89,901.3,0.8256351]
[1764766241807,0.19301272,901.89,901.33,0.70558337]
[1764766242006,0.19301272,901.89,901.34,0.70558337]
[1764766242207,0.19301272,901.89,901.35,0.70558337]
[1764766242507,0.19301272,901.89,901.36,0.70558337]
[1764766242706,0.19301272,901.89,901.37,0.70558337]
[1764766242908,0.19301272,901.89,901.38,0.70558337]
[1764766243108,0.19301272,901.89,901.39,0.70558337]
[1764766243309,0.19301272,901.89,901.4,0.70558337]
[1764766243516,0.19301272,901.89,901.41,0.70558337]
[1764766243705,0.19301272,901.89,901.42,0.70558337]
[1764766244009,0.19301272,901.89,901.43,0.70558337]
[1764766244208,0.19301272,901.89,901.31,0.8256351]
[1764766244209,0.19301272,901.89,901.44,0.70558337]
[1764766244406,1.63645863,902.5,901.45,0.70558337]
[1764766244605,0.19294476,902.01,901.46,0.70558337]
[1764766244803,1.63645863,902.5,901.47,0.70558337]
[1764766245010,0.19294262,902.01,901.48,0.70558337]
[1764766245311,1.63645863,902.53,901.49,0.70558337]
[1764766245510,1.63645863,902.53,901.5,0.70558337]
[1764766245806,1.63645863,902.53,901.51,0.70558337]
[1764766246110,1.63645863,902.53,901.52,0.70558337]
[1764766246405,1.63645863,902.52,901.53,0.70558337]
[1764766246610,0.19292391,902.28,901.54,0.70558337]
[1764766246905,0.19292391,902.28,901.55,0.70558337]
[1764766247105,0.19292391,902.28,901.56,0.70558337]
[1764766247306,0.19292391,902.28,901.57,0.70558337]
[1764766247506,0.19292391,902.28,901.58,0.70558337]
[1764766247710,0.19292391,902.28,901.59,0.70558337]
[1764766248010,0.19292391,902.28,901.6,0.70558337]
[1764766248211,0.19292391,902.28,901.61,0.70558337]
[1764766248506,0.19292391,902.28,901.62,0.70558337]
[1764766248709,0.19292391,902.28,901.63,0.70558337]
[1764766248910,0.19292391,902.28,901.64,0.70558337]
[1764766249108,0.19292391,902.28,901.55,1.595]
[1764766249307,0.19292391,902.28,901.56,0.70479892]
[1764766249506,0.19292391,902.28,901.57,0.70479892]
[1764766249706,0.19292391,902.28,901.58,0.70479892]
[1764766249909,0.19292391,902.28,901.59,0.70479892]
[1764766250109,0.19292391,902.28,901.6,0.70479892]
[1764766250310,0.19292391,902.28,901.61,0.70479892]
[1764766250607,0.19292391,902.28,901.62,0.70479892]
[1764766250807,0.19292391,902.28,901.55,1.595]
[1764766250808,0.19292391,902.28,901.63,0.70479892]
[1764766251006,0.19292391,902.28,901.64,0.70479892]
[1764766251207,0.19292391,902.28,901.55,1.595]
[1764766251411,0.19292391,902.28,901.56,0.70495133]
[1764766251612,0.19292391,902.28,901.57,0.70495133]
[1764766251809,0.19292391,902.28,901.58,0.70495133]
[1764766252108,0.19292391,902.28,901.59,0.70495133]
[1764766252312,0.19292391,902.28,901.6,0.70495133]
[1764766252513,0.19292391,902.28,901.61,0.70495133]
[1764766252712,0.19292391,902.28,901.62,0.70495133]
[1764766252912,0.19292391,902.28,901.63,0.70495133]
[1764766253109,0.19292391,902.28,901.55,1.595]
[1764766253413,0.19292391,902.28,901.56,0.70493621]
[1764766253613,0.19292391,902.28,901.57,0.70493621]
[1764766253813,0.19292391,902.28,901.58,0.70493621]
[1764766254013,0.19292391,902.28,901.59,0.70493621]
[1764766254308,0.19292391,902.28,901.6,0.70493621]
[1764766254609,0.19292391,902.28,901.61,0.70493621]
[1764766254808,0.19292391,902.28,901.55,1.595]
[1764766254809,0.19292391,902.28,901.62,0.70493621]
[1764766255014,0.19292391,902.28,901.63,0.70493621]
[1764766255208,0.19292391,902.28,901.64,0.70493621]
[1764766255409,0.19292391,902.28,901.65,0.70493621]
[1764766255614,0.19292391,902.28,901.66,0.70493621]
[1764766255909,0.19292391,902.28,901.67,0.70493621]
[1764766256113,0.19292391,902.28,901.55,1.595]
[1764766256311,0.19292391,902.28,901.56,0.70481377]
[1764766256508,0.19292391,902.28,901.57,0.70481377]
[1764766256710,0.19292391,902.28,901.58,0.70481377]
[1764766256909,0.19292391,902.28,901.59,0.70481377]
[1764766257114,0.19292391,902.28,901.6,0.70481377]
[1764766257314,0.19292391,902.28,901.61,0.70481377]
[1764766257514,0.19292391,902.28,901.62,0.70481377]
[1764766257713,0.19292391,902.28,901.63,0.70481377]
[1764766258015,0.19292391,902.28,901.64,0.70481377]
[1764766258215,0.19292391,902.28,901.65,0.70481377]
[1764766258510,0.19292391,902.28,901.66,0.70481377]
[1764766258714,0.19292391,902.28,901.67,0.70481377]
[1764766258909,0.19292391,902.28,901.68,0.70481377]
[1764766259110,0.19292391,902.28,901.55,1.595]
[1764766259312,0.19292391,902.28,901.56,0.70502691]
[1764766259512,0.19292391,902.28,901.57,0.70502691]
[1764766259816,0.19292391,902.28,901.58,0.70502691]
[1764766260017,0.19292391,902.28,901.59,0.70502691]
[1764766260217,0.19292391,902.28,901.6,0.70502691]
[1764766260417,0.19292391,902.28,901.61,0.70502691]
[1764766260717,0.19292391,902.28,901.62,0.70502691]
[1764766260916,0.19292391,902.28,901.63,0.70502691]
[1764766261120,0.19292391,902.28,901.64,0.70502691]
[1764766261319,0.19292391,902.28,901.55,1.595]
[1764766261522,0.19292391,902.28,901.56,0.70510612]
[1764766261722,0.19292391,902.28,901.57,0.70510612]
[1764766261922,0.19292391,902.28,901.58,0.70510612]
[1764766262122,0.19292391,902.28,901.59,0.70510612]
[1764766262319,0.19292391,902.28,901.6,0.70510612]
[1764766262619,0.19292391,902.28,901.61,0.70510612]
[1764766262818,0.19292391,902.28,901.62,0.70510612]
[1764766263017,0.19292391,902.28,901.63,0.70510612]
[1764766263218,0.19292391,902.28,901.55,1.595]
[1764766263418,0.19292391,902.28,901.56,0.70518315]
[1764766263622,0.19292391,902.28,901.57,0.70518315]
[1764766263820,0.19292391,902.28,901.58,0.70518315]
[1764766264025,0.19292391,902.28,901.59,0.70518315]
[1764766264225,0.19292391,902.28,901.55,1.595]
[1764766264226,0.19292391,902.28,901.6,0.70518315]
[1764766264424,0.19292391,902.28,901.55,1.595]
[1764766264425,0.19292391,902.28,901.61,0.70518315]
[1764766264626,0.19292391,902.28,901.55,1.595]
[1764766264926,0.19292391,902.28,901.56,0.70485183]
[1764766265223,0.19292391,902.28,901.57,2.23085183]
[1764766265426,0.19292391,902.28,901.58,0.70485183]
[1764766265721,0.19292391,902.28,901.57,1.526]
[1764766265722,0.19292391,902.28,901.59,0.70485183]
[1764766265927,0.19292391,902.28,901.57,1.526]
[1764766266127,0.19292391,902.28,901.58,0.70443688]
[1764766266322,0.19292391,902.28,901.59,0.70443688]
[1764766266522,0.19292391,902.28,901.57,1.526]
[1764766266721,0.19292391,902.28,901.58,0.70437726]
[1764766266926,0.19292391,902.28,901.59,0.70437726]
[1764766267125,0.19292391,902.28,901.57,1.526]
[1764766267327,0.19292391,902.28,901.58,0.70428055]
[1764766267528,0.19292391,902.28,901.57,1.526]
[1764766267724,0.19292391,902.28,901.58,0.70428055]
[1764766267925,0.19292391,902.28,901.57,1.526]
[1764766268128,0.19292391,902.28,901.58,0.70428029]
[1764766268324,0.19292391,902.28,901.57,1.526]
[1764766268528,0.19292391,902.28,901.58,0.70414366]
[1764766268827,0.19292391,902.28,901.57,1.526]
[1764766269027,0.19292391,902.28,901.58,0.70408185]
[1764766269328,0.19292391,902.28,901.59,0.70408185]
[1764766269630,0.19292391,902.28,901.57,1.526]
[1764766269832,0.19292391,902.28,901.58,0.70401447]
[1764766270131,0.19292391,902.28,901.57,1.526]
[1764766270331,0.19292391,902.28,901.58,0.70396131]
[1764766270527,0.19292391,902.28,901.57,1.526]
[1764766270726,0.19292391,902.28,901.59,1.608]
[1764766271331,0.19292391,902.28,901.6,0.70359118]
[1764766271531,0.19292391,902.28,901.59,1.608]
[1764766271832,0.19292391,902.28,901.6,0.70334702]
[1764766272027,0.19292391,902.28,901.59,1.608]
[1764766272230,0.19292391,902.28,901.6,0.70334698]
[1764766272432,0.19292391,902.28,901.59,1.608]
[1764766272632,0.19292391,902.28,901.6,0.70326918]
[1764766272833,0.19292391,902.28,901.59,1.608]
[1764766273033,0.19292391,902.28,901.6,0.70326918]
[1764766273234,0.19292391,902.28,901.59,1.608]
[1764766279134,0.19292391,902.28,901.6,0.70330369]
[1764766279334,0.19292391,902.28,901.59,1.608]
[1764766279538,0.19292391,902.28,901.6,0.70330369]
[1764766279739,0.19292391,902.28,901.61,0.70330369]
[1764766279942,0.19292391,902.28,901.62,0.70330369]
[1764766280139,0.19292391,902.28,901.63,0.70331843]
[1764766280339,0.19292391,902.28,901.59,1.608]
[1764766280539,0.19292391,902.28,901.6,0.70331843]
[1764766280736,0.19292391,902.28,901.61,0.70331843]
[1764766280940,0.19292391,902.28,901.62,0.70331843]
[1764766281137,0.19292391,902.28,901.63,0.70331843]
[1764766281441,0.19292391,902.28,901.59,1.608]
[1764766281636,0.19292391,902.28,901.6,0.7033352]
[1764766281841,0.19292391,902.28,901.59,1.608]
[1764766282041,0.19292391,902.28,901.6,0.70335869]
[1764766282341,0.19292391,902.28,901.59,1.608]
[1764766287446,0.19292391,902.28,901.6,0.70322642]
[1764766287743,0.19292391,902.28,901.59,1.608]
[1764766287943,0.19292391,902.28,901.6,0.70312822]
[1764766288144,0.19292391,902.28,901.61,0.70333852]
[1764766288343,0.19292391,902.28,901.59,1.608]
[1764766288539,0.19292391,902.28,901.6,0.70333846]
[1764766288841,0.19292391,902.28,901.61,0.70333846]
[1764766289040,0.19292391,902.28,901.59,1.608]
[1764766289243,0.19292391,902.28,901.6,0.70333846]
[1764766289443,0.19292391,902.28,901.61,0.70333846]
[1764766289745,0.19292391,902.28,901.59,1.608]
[1764766289945,0.19292391,902.28,901.6,0.70339645]
[1764766290244,0.19292391,902.28,901.61,0.70339645]
[1764766290441,0.19292391,902.28,901.62,0.70339645]
[1764766290646,0.19292391,902.28,901.59,1.608]
[1764766290841,0.19292391,902.28,901.6,0.70345532]
[1764766291041,0.19292391,902.28,901.61,0.70345532]
[1764766291241,0.19292391,902.28,901.62,0.70345532]
[1764766291545,0.19292391,902.28,901.63,0.70345532]
[1764766291744,0.19292391,902.28,901.64,0.70345532]
[1764766292045,0.19292391,902.28,901.59,1.608]
[1764766292244,0.19292391,902.28,901.6,0.70352002]
[1764766292442,0.19292391,902.28,901.61,0.70352002]
[1764766292639,0.19292391,902.28,901.62,0.70352002]
[1764766292841,0.19292391,902.28,901.63,0.70352002]
[1764766293043,0.19292391,902.28,901.64,0.70352002]
[1764766293243,0.19292391,902.28,901.59,1.608]
[1764766293442,0.19292391,902.28,901.6,0.70427504]
[1764766293641,0.19292391,902.28,901.59,1.608]
[1764766296346,0.19292391,902.28,901.6,0.70164784]
[1764766296645,0.19292391,902.28,901.59,1.608]
[1764766296845,0.19292391,902.28,901.6,0.70164784]
[1764766297042,0.19292391,902.28,901.59,1.608]
[1764766297344,0.19292391,902.28,901.6,0.70164775]
[1764766297541,0.19292391,902.28,901.61,0.70164775]
[1764766297746,0.19292391,902.28,901.62,0.70164775]
[1764766297942,0.19292391,902.28,901.63,0.70164775]
[1764766298143,0.19292391,902.28,901.64,0.70319432]
[1764766298342,0.19292391,902.28,901.65,0.70319432]
[1764766298542,0.19292391,902.28,901.66,0.70319432]
[1764766298747,0.19292391,902.28,901.67,0.70319432]
[1764766298947,0.19292391,902.28,901.68,0.70319432]
[1764766299247,0.19292391,902.28,901.69,0.70319432]
[1764766299448,0.19292391,902.28,901.7,0.70319432]
[1764766299647,0.19292391,902.28,901.41,0.8256351]
[1764766299847,0.19292391,902.28,901.42,1.52877611]
[1764766300051,0.19292391,902.28,901.43,0.70314101]
[1764766300347,0.19292391,902.28,901.44,0.70314101]
[1764766300552,0.19292391,902.28,901.45,0.70314101]
[1764766300849,0.19292391,902.28,901.46,0.70314101]
[1764766301052,0.19292391,902.28,901.47,0.70314101]
[1764766301250,0.19292391,902.28,901.43,1.449]
[1764766301251,0.19292391,902.28,901.48,0.70314101]
[1764766301452,0.19292391,902.28,901.49,0.70314101]
[1764766301652,0.19292391,902.28,901.5,0.70314101]
[1764766301952,0.19292391,902.28,901.51,0.70314101]
[1764766302155,0.19292391,902.28,901.52,0.70314101]
[1764766302451,0.19292391,902.28,901.53,0.70314101]
[1764766302650,0.19292391,902.28,901.54,0.70314101]
[1764766302855,0.19292391,902.28,901.55,0.70314101]
[1764766303055,0.19292391,902.28,901.56,0.70314101]
[1764766303256,0.19292391,902.28,901.57,0.70314101]
[1764766303457,0.19292391,902.28,901.58,0.70314101]
[1764766303657,0.19292391,902.28,901.59,0.70314101]
[1764766303853,0.19292391,902.28,901.6,0.70314101]
[1764766304154,0.19292391,902.28,901.61,0.70314101]
[1764766304454,0.19292391,902.28,901.62,0.70314101]
[1764766304658,0.19292391,902.28,901.51,2.4146351]
[1764766304659,0.19292391,902.28,901.63,0.70314101]
[1764766304857,0.19292391,902.28,901.64,0.70314101]
[1764766305074,0.19292391,902.28,901.65,0.70314101]
[1764766305254,0.19292391,902.28,901.66,0.70314101]
[1764766305457,0.19292391,902.28,901.67,0.70314101]
[1764766305658,0.19292391,902.28,901.68,0.70314101]
[1764766305859,0.19292391,902.28,901.69,0.70314101]
[1764766306155,0.19292391,902.28,901.7,0.70314101]
[1764766306354,0.19292391,902.28,901.71,0.70314101]
[1764766306558,0.19292391,902.28,901.72,0.70314101]
[1764766306756,0.19292391,902.28,901.73,0.70314101]
[1764766306956,0.19292391,902.28,901.74,0.70314101]
[1764766307255,0.19292391,902.28,901.75,0.70314101]
[1764766307461,0.19292391,902.28,901.76,0.70314101]
[1764766307759,0.19292391,902.28,901.77,0.70314101]
[1764766307955,0.19292391,902.28,901.78,0.70314101]
[1764766308256,0.19292391,902.28,901.79,0.70314101]
[1764766308457,0.19292391,902.28,901.8,0.70314101]
[1764766308756,0.19292391,902.28,901.51,2.4146351]
[1764766308961,0.19292391,902.28,901.52,1.52841919]
[1764766309160,0.19292391,902.28,901.53,0.70278409]
[1764766309361,0.19292391,902.28,901.54,0.70278409]
[1764766309562,0.19292391,902.28,901.55,0.70278409]
[1764766309764,0.19292391,902.28,901.56,0.70278409]
[1764766309963,0.19292391,902.28,901.57,0.70278409]
[1764766310261,0.19292391,902.28,901.58,0.70278409]
[1764766310457,0.19292391,902.28,901.59,0.70278409]
[1764766310660,0.19292391,902.28,901.6,0.70278409]
[1764766310862,0.19292391,902.28,901.61,0.70278409]
[1764766311061,0.19292391,902.28,901.62,0.70278409]
[1764766311265,0.19292391,902.28,901.63,0.70278409]
[1764766311465,0.19292391,902.28,901.51,1.589]
[1764766311466,0.19292391,902.28,901.64,0.70278409]
[1764766311662,0.19292391,902.28,901.65,0.70278409]
[1764766311867,0.19292391,902.28,901.66,0.70278409]
[1764766312064,0.19292391,902.28,901.51,1.589]
[1764766312065,0.19292391,902.28,901.67,0.70278409]
[1764766312266,0.19292391,902.28,901.68,0.70278409]
[1764766312465,0.19292391,902.28,901.69,0.70278409]
[1764766312666,0.19292391,902.28,901.7,0.70278409]
[1764766312866,0.19292391,902.28,901.71,0.70278409]
[1764766313069,0.19292391,902.28,901.72,0.70278409]
[1764766313266,0.19292391,902.28,901.73,0.70278409]
[1764766313465,0.19292391,902.28,901.74,0.70278409]
[1764766313667,0.19292391,902.28,901.51,1.589]
[1764766313968,0.19292391,902.28,901.52,0.70267908]
[1764766314167,0.19292391,902.28,901.53,0.70267908]
[1764766314368,0.19292391,902.28,901.54,0.70267908]
[1764766314667,0.19292391,902.28,901.55,0.70267908]
[1764766314868,0.19292391,902.28,901.56,0.70267908]
[1764766315063,0.19292391,902.28,901.57,0.70267908]
[1764766315266,0.19292391,902.28,901.58,0.70267908]
[1764766315467,0.19292391,902.28,901.59,0.70267908]
[1764766315667,0.19292391,902.28,901.6,0.70267908]
[1764766315966,0.19292391,902.28,901.61,0.70267908]
[1764766316166,0.19292391,902.28,901.62,0.70267908]
[1764766316366,0.19292391,902.28,901.63,0.70267908]
[1764766316668,0.19292391,902.28,901.64,0.70267908]
[1764766316867,0.19292391,902.28,901.65,0.70267908]
[1764766317065,0.19292391,902.28,901.51,1.589]
[1764766317066,0.19292391,902.28,901.66,0.70267908]
[1764766317262,0.19292391,902.28,901.67,0.70267908]
[1764766317462,0.19292391,902.28,901.68,0.70267908]
[1764766317666,0.19292391,902.28,901.51,1.589]
[1764766317869,0.19292391,902.28,901.52,0.70256489]
[1764766318063,0.19292391,902.28,901.53,0.70256489]
[1764766318268,0.19292391,902.28,901.54,0.70256489]
[1764766318470,0.19292391,902.28,901.55,0.70256489]
[1764766318666,0.19292391,902.28,901.56,0.70256489]
[1764766318968,0.19292391,902.28,901.57,0.70256489]
[1764766319169,0.19292391,902.28,901.58,0.70256489]